[Event "AUT Bundesliga 2024-25"]
[Site "Austria"]
[Date "2025.04.02"]
[Round "6.24"]
[White "Bacrot, Etienne"]
[Black "Hinterreiter, Markus"]
[Result "1-0"]
[Annotator "TA"]
[ECO "B38"]
[WhiteElo "2633"]
[BlackElo "2236"]
[PlyCount "165"]
[EventDate "2024.08.28"]
[EventType "team-tourn"]
[EventCountry "AUT"]
[SourceTitle "playchess.com"]
[Source "ChessBase"]
[SourceQuality "1"]
[TimeControl "40/5400+30:1800+30"]

{[%evp 20,165,60,55,70,43,70,70,65,65,65,45,45,40,42,53,56,8,33,16,32,10,4,9,57,8,6,10,17,0,48,57,137,18,27,37,22,22,30,31,31,11,141,148,221,228,251,241,247,236,262,254,270,252,252,247,252,252,252,252,252,252,252,245,252,252,252,252,252,252,252,245,252,245,245,245,245,245,252,245,252,252,252,252,252,245,252,230,252,230,245,245,245,0,230,230,245,230,245,230,252,252,245,245,252,245,255,230,257,241,248,208,296,275,295,230,293,293,304,304,29953,29963,29965,29965,29965,29968,29966,29970,29969,29970,29971,29972,29972,29973,29973,29973,29971,29974,29974,208,29974,29973,29973,29974,29974,29975,29972,187]} 1. c4 {[%emt 0:00:03]} g6 {[%emt 0:00:56]} 2. Nc3 {[%emt 0:00:50]} c5 {[%emt 0:02:16]} 3. Nf3 {[%emt 0:00:19]} Nf6 {[%emt 0:01:12]} 4. d4 {[%emt 0:00:24]} cxd4 {[%emt 0:00:31]} 5. Nxd4 {[%emt 0:00:07]} Nc6 {[%emt 0:00:56]} 6. e4 {[%emt 0:01:01]} Qb6 {[%emt 0:06:42]} 7. Nb3 {[%emt 0:01:35]} Bg7 {[%emt 0:04:49]} 8. Be2 {[%emt 0:00:39]} O-O {[%emt 0:01:15]} 9. O-O {[%emt 0:01:14]} d6 {[%emt 0:04:11]} 10. Be3 {[%emt 0:01:30]} Qc7 {[%emt 0:08:44]} 11. Rc1 {[%emt 0:00:26]} Be6 {[%emt 0:04:19] B38: Sicilian: Maroczy Bind with 5...Bg7 and 7...0-0.} 12. Nd5 $5 {[%emt 0:02:59][%mdl 4] A promising side line.} Qd7 {[%emt 0:01:31]} 13. f3 {[%emt 0:00:14]} Rfc8 {[%emt 0:06:43] White is slightly better.} 14. Qd2 {[%emt 0:01:00]} Qd8 $146 {[%emt 0:03:27]} (14... b6 15. Rfe1 Qb7 16. Bf1 Nd7 17. Rc2 Nc5 18. Nc1 a5 19. a3 a4 20. Qf2 f5 21. exf5 Bxf5 {1-0 Gueting,J-Schneider,B (2221) Verbandsliga Nord Baden 9900 1999 (3.3)}) 15. Rfd1 {[%emt 0:02:28] White is much more active.} Nd7 {[%emt 0:04:40] Strong Square White (d5)} 16. c5 {[%emt 0:00:54]} Nxc5 {[%emt 0:01:46]} 17. Nxc5 {[%emt 0:00:11]} dxc5 {[%emt 0:00:03]} 18. Bxc5 {[%emt 0:00:07]} (18. Rxc5 $14 b6 19. Rc4) 18... Bxd5 $11 {[%emt 0:07:04]} 19. exd5 {[%emt 0:00:18]} Ne5 {[%emt 0:00:08]} 20. Bf2 {[%emt 0:04:22]} a6 {[%emt 0:01:14]} 21. f4 {[%emt 0:02:24]} Nd7 {[%emt 0:05:26]} (21... Rxc1 $1 $11 22. Rxc1 Nd7) 22. Bf3 {[%emt 0:00:55]} (22. Rxc8 $14 Rxc8 23. Bg4) 22... Rxc1 {[%emt 0:01:27]} 23. Rxc1 {[%emt 0:00:02]} Rc8 {[%emt 0:00:41]} 24. Re1 {[%emt 0:01:14]} Bf6 {[%emt 0:05:51]} (24... Nf6 $11 {should be considered.}) 25. d6 $14 {[%emt 0:08:02]} Nc5 {[%emt 0:02:51]} (25... exd6 $14 26. Bxb7 Rb8) 26. d7 {[%emt 0:10:29] White plays in the center} (26. b4 $16 Ne6 27. Bxb7) 26... Qxd7 $11 {[%emt 0:09:03]} 27. Qxd7 {[%emt 0:00:13]} Nxd7 {[%emt 0:00:01]} 28. Bxb7 {[%emt 0:00:06] A strong pair of Bishops.} Rc2 {[%emt 0:00:38]} 29. Bxa6 {[%emt 0:00:09]} Rxb2 {[%emt 0:00:35]} 30. a4 {[%emt 0:00:13][%cal Ba2a4,Ba4a5][%mdl 32]} Nb6 {[%emt 0:02:09]} (30... Nf8 $11) 31. a5 $16 {[%emt 1:01:32]} Nd5 {[%emt 0:03:04]} (31... Bc3 $16) 32. Bc4 $18 {[%emt 0:00:00]} Nb4 {[%emt 0:04:24]} 33. a6 {[%emt 0:00:00]} Nxa6 {[%emt 0:02:45]} 34. Bxa6 {[%emt 0:00:00]} h5 {[%emt 0:01:16]} 35. Be3 {[%emt 0:00:00]} e6 {[%emt 0:00:54]} 36. Re2 {[%emt 0:00:00]} Rb4 {[%emt 0:00:24]} 37. Kf2 {[%emt 0:00:00]} Bd4 {[%emt 0:00:46]} 38. Bxd4 {[%emt 0:00:00]} Rxd4 {[%emt 0:00:01][%mdl 4096] Endgame KRB-KR} 39. Ke3 {[%emt 0:00:00]} Ra4 {[%emt 0:00:57]} 40. Bd3 {[%emt 0:00:00]} Kg7 {[%emt 0:00:40]} 41. Rb2 {[%emt 0:00:00]} Ra7 {[%emt 0:31:17]} 42. Rb3 {[%emt 0:00:00]} Kf6 {[%emt 0:00:00]} 43. Kf3 {[%emt 0:00:00]} Kg7 {[%emt 0:00:00]} 44. Kg3 {[%emt 0:00:00]} Kf6 {[%emt 0:00:00]} 45. Be4 {[%emt 0:00:00]} Ra4 {[%emt 0:00:00]} 46. Bc6 {[%emt 0:00:00]} Rc4 {[%emt 0:00:00]} 47. Bb5 {[%emt 0:00:00]} Rc5 {[%emt 0:00:00]} 48. Bd3 {[%emt 0:00:00]} Rc7 {[%emt 0:00:00]} 49. Ra3 {[%emt 0:00:00]} Rb7 {[%emt 0:00:00]} 50. Kf3 {[%emt 0:00:00]} Rc7 {[%emt 0:00:00]} 51. Ke3 {[%emt 0:00:00]} Rb7 {[%emt 0:00:00]} 52. Be4 {[%emt 0:00:00]} Rb2 {[%emt 0:00:00]} 53. Kd3 {[%emt 0:00:00]} Kg7 {[%emt 0:00:00]} 54. Kc3 {[%emt 0:00:00]} Re2 {[%emt 0:00:00]} 55. Kd4 {[%emt 0:00:00]} Rb2 {[%emt 0:00:00]} 56. Kc3 {[%emt 0:00:00]} Re2 {[%emt 0:00:00]} 57. Ra4 {[%emt 0:00:00]} Kf8 {[%emt 0:00:00]} 58. Bc6 {[%emt 0:00:00]} Rf2 {[%emt 0:00:00]} 59. Bf3 {[%emt 0:00:00]} Ke7 {[%emt 0:00:00]} 60. Ra7+ {[%emt 0:00:00]} Kf6 {[%emt 0:00:00]} 61. Kd3 {[%emt 0:00:00]} Rb2 {[%emt 0:00:00]} 62. Bc6 {[%emt 0:00:00]} Rb8 {[%emt 0:00:00]} 63. Kc4 {[%emt 0:00:00]} Kg7 {[%emt 0:00:00]} 64. Kc5 {[%emt 0:00:00]} Kf6 {[%emt 0:00:00]} 65. Kd6 {[%emt 0:00:00]} Rd8+ {[%emt 0:00:44]} (65... Rb2 $142 66. Be8 Rd2+ 67. Kc5 e5 68. fxe5+ (68. Rxf7+ Ke6 $18) (68. Bxf7 Rxg2 69. fxe5+ Kxe5 $16) 68... Kxe5 69. Re7+ (69. Rxf7 Rc2+ 70. Kb4 Rb2+ 71. Kc4 Rxg2 $16) 69... Kf5 70. Rxf7+ Ke5) 66. Rd7 {[%emt 0:00:00]} Rc8 {[%emt 0:00:10]} 67. h3 {[%emt 0:00:00]} Rb8 {[%emt 0:01:22]} 68. Bb7 {[%emt 0:00:00]} Rf8 {[%emt 0:00:26]} 69. Kc7 {[%emt 0:00:00] and Rd8 should not be overlooked} Kf5 $2 {[%emt 0:01:40] [#]} (69... Rh8 $18 70. h4 Re8) 70. Rd8 $1 {[%emt 0:12:54]} Rxd8 {[%emt 0:00:02]} 71. Kxd8 {[%emt 0:00:05]} Kxf4 {[%emt 0:00:05] KB-KP} 72. Ke7 {[%emt 0:00:03]} g5 {[%emt 0:08:27][%cal Bg6g5,Bg5g4,Bg4g3][%mdl 32]} 73. Kxf7 {[%emt 0:02:25] KB-K3P} g4 {[%emt 0:01:36] [#]} 74. h4 $1 {[%emt 0:00:46]} Kg3 {[%emt 0:00:27]} 75. Kg6 {[%emt 0:00:58]} ({Not} 75. Kxe6 Kxh4 76. Kf5 Kg3 $11) 75... Kxh4 {[%emt 0:00:06]} 76. Bc6 {[%emt 0:01:52]} e5 {[%emt 0:00:51]} 77. Bb7 {[%emt 0:00:38]} e4 {[%emt 0:01:42]} 78. Bxe4 {[%emt 0:00:08]} g3 {[%emt 0:00:04]} 79. Bd5 {[%emt 0:01:03]} Kg4 {[%emt 0:00:02]} 80. Bc6 {[%emt 0:00:25] White mates.} Kh4 {[%emt 0:00:05]} 81. Kh6 {[%emt 0:00:33]} Kg4 {[%emt 0:00:04]} 82. Bd7+ {[%emt 0:00:11]} Kh4 {[%emt 0:00:05]} 83. Be8 {[%emt 0:00:05] Weighted Error Value: White=0.15 (very precise) /Black=0.16 (very precise)   Mistake:       	White=3     	Black=7      Inaccurate:     	White=1     	Black=1      OK:         	White=21    	Black=17     Best:        	White=3     	---        Strong:       	White=1     	---} 1-0

[Event "AUT Bundesliga 2024-25"]
[Site "Austria"]
[Date "2025.04.02"]
[Round "6.26"]
[White "Vitouch, Anatol"]
[Black "Petrov, Nikita"]
[Result "0-1"]
[Annotator "TA"]
[ECO "D02"]
[WhiteElo "2271"]
[BlackElo "2567"]
[PlyCount "124"]
[EventDate "2024.08.28"]
[EventType "team-tourn"]
[EventCountry "AUT"]
[SourceTitle "playchess.com"]
[Source "ChessBase"]
[SourceQuality "1"]
[TimeControl "40/5400+30:1800+30"]

{[%evp 9,124,28,47,26,27,22,26,25,29,9,16,-15,-14,2,14,0,22,4,5,0,0,0,17,2,13,0,12,14,16,17,50,0,14,-9,0,0,0,0,0,-14,-14,-16,-18,-6,-12,-16,-10,-27,-21,-75,-54,-52,-46,-56,0,-93,-72,-124,-120,-123,-124,-315,-303,-322,-320,-338,-254,-250,-244,-227,-237,-269,-269,-229,-264,-262,-264,-268,-253,-327,-323,-311,-289,-286,-225,-264,-202,-207,-89,-472,-476,-458,-486,-622,-616,-598,-600,-568,-565,-566,-475,-492,-613,-619,-604,-612,-612,-579,-566,-744,-744,-1101,-2221,-1242,-942,-5043,-4973]} 1. Nf3 {[%emt 0:00:02]} d5 {[%emt 0:00:16]} 2. g3 {[%emt 0:00:08]} Nd7 {[%emt 0:00:41]} 3. d4 {[%emt 0:00:26]} Nb6 {[%emt 0:00:11]} 4. Bg2 {[%emt 0:00:12]} Bf5 {[%emt 0:00:31]} 5. O-O {[%emt 0:00:22]} e6 {[%emt 0:00:34]} 6. b3 {[%emt 0:03:52] D02: 1 d4 d5 2 Nf3 sidelines, including 2...Nf6 3 g3 and 2...Nf6 3 Bf4.} c6 {[%emt 0:02:47]} 7. Bb2 {[%emt 0:00:47]} Nf6 {[%emt 0:01:28]} 8. Nbd2 {[%emt 0:03:08] White has an edge.} Be7 {[%emt 0:02:15]} 9. Ne5 {[%emt 0:02:37]} Nbd7 {[%emt 0:04:48]} 10. Nxd7 $146 {[%emt 0:08:14]} (10. e3 h5 11. h3 Ne4 12. Nxe4 Bxe4 13. Qe2 Bxg2 14. Kxg2 Bd6 15. e4 dxe4 16. Qxe4 {½-½ Aczel,G (2560)-Horvath,D (2447) Budapest Aranytiz GM 2021 (5)}) 10... Qxd7 {[%emt 0:00:35]} 11. Nf3 {[%emt 0:00:12]} O-O {[%emt 0:11:57]} 12. Ne5 {[%emt 0:00:47]} Qc7 {[%emt 0:00:39]} 13. e3 {[%emt 0:02:05]} h6 {[%emt 0:01:38] The position is symmetric and equal} 14. Qe2 {[%emt 0:01:08]} a5 {[%emt 0:04:46]} 15. a4 {[%emt 0:00:44]} Be4 {[%emt 0:01:17]} 16. c4 {[%emt 0:02:00]} Rfd8 {[%emt 0:12:23]} 17. Rfc1 {[%emt 0:05:47]} Bxg2 {[%emt 0:05:02]} 18. Kxg2 {[%emt 0:00:07]} Bd6 {[%emt 0:01:36]} 19. Nd3 {[%emt 0:00:36]} Qe7 {[%emt 0:00:36]} 20. Bc3 {[%emt 0:14:33]} Ne4 {[%emt 0:03:26]} 21. Qe1 {[%emt 0:05:29]} Bc7 {[%emt 0:03:12]} 22. f3 {[%emt 0:08:12]} Nd6 {[%emt 0:05:08]} 23. c5 {[%emt 0:08:56]} Nf5 {[%emt 0:00:11]} 24. Qf2 {[%emt 0:01:23]} (24. Qe2 $5) 24... Qg5 {[%emt 0:05:18]} 25. Re1 {[%emt 0:06:58]} Nh4+ {[%emt 0:04:08]} 26. Kh1 {[%emt 0:00:58]} Qf5 {[%emt 0:01:29][%csl LRd3,LRf3]} 27. Nf4 {[%emt 0:02:06]} Ng6 {[%emt 0:02:23]} 28. g4 {[%emt 0:02:20]} Qg5 {[%emt 0:03:46]} 29. Ng2 {[%emt 0:03:02]} (29. Nd3 $11) 29... e5 {[%emt 0:07:08]} 30. Rf1 {[%emt 0:00:29]} exd4 {[%emt 0:02:37]} 31. Bxd4 {[%emt 0:00:08]} Nf8 {[%emt 0:04:21]} ({Better is} 31... Re8 $15) 32. h3 {[%emt 0:08:40]} (32. Nh4 $1 $11 {keeps the balance.} Rd7 33. Nf5) 32... Re8 $40 {[%emt 0:02:36][%mdl 128] Black attacks with force.} 33. Rae1 {[%emt 0:01:19] [#]} (33. Nh4 $142) 33... Ne6 $1 $17 {[%emt 0:00:42]} 34. f4 {[%emt 0:00:20]} Qe7 {[%emt 0:01:00]} 35. f5 $2 {[%emt 0:02:48]} (35. Qc2 $17 {is a better defense.}) 35... Nxc5 $19 {[%emt 0:02:02]} 36. f6 {[%emt 0:01:58]} Qd6 {[%emt 0:00:07]} 37. Nf4 {[%emt 0:00:28][%cal Bg2f4,Bf4h5,Bh5g7,Bg7f5][%mdl 32]} g5 {[%emt 0:02:22]} (37... gxf6 38. Bxc5 Qxc5 39. Nh5 $11) (37... Nxb3 38. Bb2 g5 (38... gxf6 39. Nh5 $11) (38... g6 39. Nxg6 Qg3 40. Ne7+ Kh7 41. Qc2+ Kh8 42. Ng6+ Kg8 43. Ne7+ Rxe7 44. fxe7 $15) 39. Ng6 $19) 38. Bxc5 {[%emt 0:00:49]} Qxc5 {[%emt 0:00:03]} 39. Nh5 {[%emt 0:04:28]} Bb6 {[%emt 0:02:37][%cal Oc5c3]} 40. Ng7 {[%emt 0:00:55]} Rxe3 {[%emt 0:00:49]} 41. Qxe3 {[%emt 0:06:19]} Qxe3 {[%emt 0:00:05]} 42. Rxe3 {[%emt 0:00:04]} Bxe3 {[%emt 0:00:03][%mdl 4096] Endgame KRB-KRN. Black is two pawns up.} 43. Nf5 {[%emt 0:00:11]} Bf4 {[%emt 0:13:19]} 44. Nxh6+ {[%emt 0:02:30]} Kh7 {[%emt 0:00:21]} ({Don't do} 44... Kf8 45. Nf5) 45. Nf5 {[%emt 0:00:07]} Kg6 {[%emt 0:00:58]} 46. h4 {[%emt 0:00:07]} Kxf6 {[%emt 0:01:46]} 47. h5 {[%emt 0:00:09]} Re8 {[%emt 0:01:24]} 48. Kg2 {[%emt 0:03:03]} c5 {[%emt 0:02:07]} (48... Re2+ $19 49. Rf2 Re8) 49. Kf2 $2 {[%emt 0:06:11][%mdl 8192]} (49. Rd1 $17 {was the crucial defense.}) 49... c4 {[%emt 0:02:24] Black is clearly winning.} 50. bxc4 {[%emt 0:00:24]} dxc4 {[%emt 0:00:06]} 51. Nd4 {[%emt 0:05:18]} c3 {[%emt 0:00:56]} 52. Nc2 {[%emt 0:00:53]} Rd8 {[%emt 0:00:31]} 53. Re1 {[%emt 0:00:17]} Kg7 {[%emt 0:01:23]} 54. Re2 {[%emt 0:02:35] [#]} f5 $1 {[%emt 0:03:49]} 55. gxf5 {[%emt 0:00:49]} Kf6 {[%emt 0:00:23]} 56. h6 {[%emt 0:01:55]} Kxf5 {[%emt 0:00:22] and ...Kg6 would now be decisive} 57. h7 {[%emt 0:00:07]} Kg6 {[%emt 0:00:53]} 58. Re7 {[%emt 0:00:32]} Rh8 {[%emt 0:00:18]} 59. Rxb7 {[%emt 0:01:00]} Rxh7 {[%emt 0:00:14]} 60. Rb6+ {[%emt 0:00:24]} Kf5 {[%emt 0:00:34] ( -> ...Rh2+)} 61. Ke2 {[%emt 0:00:34]} Rd7 {[%emt 0:00:44] ( -> ...Rd2+)} 62. Ne1 {[%emt 0:01:20]} Re7+ {[%emt 0:00:38] Weighted Error Value: White=0.28 (precise) /Black=0.12 (very precise)   Loses game:     	White=2     	---        Mistake:       	White=3     	Black=2      Inaccurate:     	White=3     	Black=1      OK:         	White=19    	Black=19     Best:        	White=1     	Black=6} 0-1

[Event "AUT Bundesliga 2024-25"]
[Site "Austria"]
[Date "2025.04.02"]
[Round "6.27"]
[White "Erdos, Viktor"]
[Black "Rubil, Marko"]
[Result "1-0"]
[Annotator "TA"]
[ECO "A80"]
[WhiteElo "2542"]
[BlackElo "2276"]
[PlyCount "49"]
[EventDate "2024.08.28"]
[EventType "team-tourn"]
[EventCountry "AUT"]
[SourceTitle "playchess.com"]
[Source "ChessBase"]
[SourceQuality "1"]
[TimeControl "40/5400+30:1800+30"]

{[%evp 9,49,26,38,35,45,28,47,52,67,61,144,140,285,285,310,308,298,281,297,270,277,205,747,751,756,513,493,487,905,904,908,859,6748,6016,3168,2973,29973,6519,5506,1509,1551,1513]} 1. d4 {[%emt 0:00:08]} f5 {[%emt 0:00:20]} 2. Nc3 {[%emt 0:07:49]} Nf6 {[%emt 0:00:55]} 3. Bg5 {[%emt 0:00:19]} d5 {[%emt 0:00:17]} 4. e3 {[%emt 0:00:09]} Nbd7 {[%emt 0:05:22]} 5. Nge2 {[%emt 0:18:01]} e6 {[%emt 0:09:59]} 6. Nf4 {[%emt 0:18:46] A80: Dutch Defence: Unusual White second moves.} Kf7 {[%emt 0:21:35]} 7. Be2 {[%emt 0:07:12]} g6 $146 {[%emt 0:04:17]} (7... c6 8. O-O g6 9. Nd3 h6 10. Bh4 Be7 11. f4 c5 12. Ne5+ Kg7 13. Qe1 Rg8 {1-0 Smyslov,V (2485)-Galliamova,A (2556) Flamenco Women-Veterans 1999 (5)}) 8. g4 {[%emt 0:08:10] White is slightly better.} c6 {[%emt 0:03:36]} 9. h4 {[%emt 0:03:55][%cal Bh2h4,Bh4h5][%mdl 32] White has more active pieces. The black rooks are passive.} Qb6 {[%emt 0:13:17]} (9... h6 $14 10. Bxf6 Nxf6) 10. h5 $16 {[%emt 0:07:05]} Bg7 {[%emt 0:00:25] [#]} (10... Qxb2 $16 11. Na4 (11. hxg6+ hxg6 12. Rxh8 Qxc3+ 13. Kf1 Ne4 $11) 11... Qa3) 11. gxf5 $1 $18 {[%emt 0:03:03]} exf5 {[%emt 0:00:32]} 12. a3 {[%emt 0:08:08]} Rg8 {[%emt 0:09:01]} (12... Qxb2 13. Na4 $18) 13. hxg6+ {[%emt 0:02:39]} hxg6 {[%emt 0:00:01] [#]} 14. Nxg6 {[%emt 0:02:20]} Bf8 {[%emt 0:07:09]} (14... Kxg6 $2 {loses.} 15. Bh5+ Kh7 16. Bf7+ $18) 15. Bxf6 {[%emt 0:05:26]} Kxg6 $2 {[%emt 0:10:35]} (15... Nxf6 16. Nxf8 Rxf8) 16. Bh4 {[%emt 0:01:23] aiming for Bh5+.} Kf7 {[%emt 0:04:05]} 17. Bd3 {[%emt 0:01:08]} Nf6 {[%emt 0:00:43] Against Qh5+} 18. Qf3 {[%emt 0:01:38]} ({Much less strong is} 18. Bxf6 Kxf6 19. Qf3 Qxb2 $18) 18... Qxb2 {[%emt 0:02:15]} (18... Qc7 $142 19. O-O-O (19. Bxf5 Bxf5 20. Qxf5 Bg7 $18) (19. Bxf6 Kxf6 $18) 19... Qd6) 19. Kd2 {[%emt 0:00:05]} Qb6 {[%emt 0:00:12]} 20. Bxf5 {[%emt 0:00:47] Bxf6 would kill now.} Be7 {[%emt 0:00:19]} 21. Bxf6 {[%emt 0:00:39]} Bxf6 {[%emt 0:00:17]} 22. Rh7+ {[%emt 0:00:10]} Rg7 {[%emt 0:00:11]} 23. Rxg7+ {[%emt 0:00:34]} (23. Bg6+ $142 Ke7 24. Rxg7+ Bxg7 25. Qf7+ Kd8 26. Qxg7 Bd7 27. Rh1 Kc7 28. Qe5+ Kc8 29. Bf5 (29. Rh8+ Qd8 $18)) 23... Kxg7 {[%emt 0:00:07]} 24. Bxc8 {[%emt 0:00:44]} (24. Rg1+ $142 Kf7 25. Qh5+ Ke7 26. Qh7+ (26. Rg8 Bxf5 27. Rxa8 Be6 $18) 26... Kd6 27. Rg6) 24... Rxc8 {[%emt 0:01:07]} 25. Qg4+ {[%emt 0:00:06] White took control after the opening.   Weighted Error Value: White=0.57/Black=1.24  Mistake:       	---       	Black=4      OK:         	White=4     	Black=2      Best:        	White=1     	Black=1      Strong:       	White=1     	---} 1-0

[Event "AUT Bundesliga 2024-25"]
[Site "Austria"]
[Date "2025.04.02"]
[Round "6.28"]
[White "Kuthan, Andreas"]
[Black "Sankalp Gupta"]
[Result "0-1"]
[Annotator "TA"]
[ECO "B10"]
[WhiteElo "2136"]
[BlackElo "2548"]
[PlyCount "80"]
[EventDate "2024.08.28"]
[EventType "team-tourn"]
[EventCountry "AUT"]
[SourceTitle "playchess.com"]
[Source "ChessBase"]
[SourceQuality "1"]
[TimeControl "40/5400+30:1800+30"]

{[%evp 11,80,0,0,0,25,-15,-12,-17,-7,-38,-34,-35,-26,-67,-60,-72,-41,-44,-45,-43,-43,-43,-35,-35,-45,-32,-50,-81,0,-6,18,12,17,15,8,0,5,-4,23,0,0,0,0,-33,0,-44,-53,-446,-431,-399,-29,-46,-59,-37,-20,-235,-225,-945,-945,-945,-154,-621,-165,-778,0,0,0,-1318,-1318,-29991,-29992]} 1. e4 {[%emt 0:00:02]} c6 {[%emt 0:00:31]} 2. c4 {[%emt 0:00:48]} d5 {[%emt 0:00:09]} 3. exd5 {[%emt 0:00:08]} cxd5 {[%emt 0:00:03]} 4. cxd5 {[%emt 0:00:09]} Nf6 {[%emt 0:00:09]} 5. Nc3 {[%emt 0:00:07]} Nxd5 {[%emt 0:00:44]} 6. Nf3 {[%emt 0:00:44]} Nc6 {[%emt 0:00:27]} 7. Bb5 {[%emt 0:01:23] B10: Caro-Kann: 2 d3 and 2 c4.} g6 $1 {[%emt 0:03:22][%mdl 4] is recently more successful than 7...e6.} 8. O-O {[%emt 0:07:09]} Bg7 {[%emt 0:01:36]} 9. d4 {[%emt 0:05:29] The position is equal.} O-O {[%emt 0:00:51]} 10. Re1 {[%emt 0:04:08]} Bg4 {[%emt 0:10:51]} 11. Bxc6 {[%emt 0:24:26]} bxc6 {[%emt 0:00:38]} 12. h3 {[%emt 0:00:34]} Bxf3 {[%emt 0:05:32][%csl Od5] Strong Square Black (d5)} 13. Qxf3 {[%emt 0:00:31]} e6 {[%emt 0:02:13]} 14. Rd1 {[%emt 0:08:42] Counterplay Black} Qb6 $146 {[%emt 0:02:31]} (14... Rb8 15. b3 Qa5 16. Na4 Rfd8 17. Bg5 Re8 18. Rac1 Rec8 19. Rc5 Rb5 20. Rc4 Qc7 {1-0 Fink Nunn,P (2090)-Sadilkova,V BL2 SW 9394 (Women) 1993}) 15. Na4 {[%emt 0:09:33]} Qb4 {[%emt 0:05:36]} 16. b3 {[%emt 0:00:12]} Bxd4 {[%emt 0:06:49]} 17. a3 {[%emt 0:04:46]} Qa5 {[%emt 0:00:12]} 18. b4 {[%emt 0:03:58]} (18. Rxd4 $2 Qe1+ 19. Kh2 Qe5+ 20. g3 Qxd4 $19) 18... Qxa4 {[%emt 0:07:28]} (18... Bxf2+ 19. Qxf2 Qxa4 20. Bh6 $16) 19. Rxd4 {[%emt 0:00:04]} f6 {[%emt 0:05:34]} ({Black should play} 19... c5 $17 20. Rc4 cxb4) 20. Bh6 $132 {[%emt 0:06:51][%mdl 2048] White is not holding back} Rf7 {[%emt 0:05:45]} 21. Rc1 {[%emt 0:00:26][%mdl 1024] White has compensation.} Qa6 {[%emt 0:00:33]} 22. Rc5 {[%emt 0:02:57]} Rd8 {[%emt 0:02:44]} 23. h4 {[%emt 0:05:06]} Qb6 {[%emt 0:05:23]} 24. Qe4 {[%emt 0:03:42]} e5 {[%emt 0:03:23]} 25. Rdc4 {[%emt 0:00:39]} Ne7 {[%emt 0:00:16]} 26. Be3 {[%emt 0:01:25]} Qb8 {[%emt 0:04:41]} 27. Qg4 {[%emt 0:03:43]} Qd6 {[%emt 0:06:16]} 28. Ra5 {[%emt 0:00:32]} Nf5 {[%emt 0:01:09]} 29. Bxa7 {[%emt 0:01:39][%mdl 8192] [#]} ({Better is} 29. Qe2 $15) 29... Qd2 $1 $19 {[%emt 0:00:27]} 30. Qe4 {[%emt 0:03:45][%cal Oa7b6] [#] Against Qe1+} Rd5 $2 {[%emt 0:10:20]} (30... Nd6 31. Qxc6 Qd1+ (31... Rc8 32. Qxc8+ Nxc8 33. Rxc8+ Kg7 34. g3 $11) 32. Kh2 Nxc4 33. Qxc4 $15) (30... Qd1+ $1 $19 31. Kh2 Nd6 32. Qxc6 Nxc4 33. Qxc4 Kg7) 31. Bc5 $11 {[%emt 0:01:08]} (31. Rxc6 $2 Rxa5 32. bxa5 Rxa7 $19) 31... Qd1+ {[%emt 0:00:01]} 32. Kh2 {[%emt 0:00:03]} Qf1 {[%emt 0:00:08]} 33. Ra8+ $2 {[%emt 0:01:35]} (33. Rc3 $11) 33... Kg7 $19 {[%emt 0:00:02] Strongly threatening ...Rd1.} 34. h5 $2 {[%emt 0:00:13]} (34. Rc3 Rd1 35. g3) 34... Rd1 {[%emt 0:02:37][%csl Gd1][%cal Rf1h1]} 35. g3 {[%emt 0:00:26]} gxh5 $2 {[%emt 0:00:29]} (35... Nh6 $19 {[%cal Oh6g4] ( -> ...Ng4+!)} 36. Qf3 f5) 36. Qxc6 $2 {[%emt 0:00:44]} (36. Qf3 $17) 36... Nh6 $2 {[%emt 0:02:51]} (36... Qxc4 37. Bf8+ Rxf8 38. Qxc4 Rxa8 39. Qc2 $17) (36... Re1 {[%cal Oe5e4] ( -> ...e4!)} 37. Rf8 Nh6 (37... Qxc4 $2 38. Rg8+ Kxg8 39. Qc8+ Kg7 40. Bf8+ Rxf8 41. Qxc4 $19) (37... Rxf8 $2 38. Bxf8+ Kg6 39. Rc2 $19)) 37. b5 $2 {[%emt 0:00:33]} ({Don't go for} 37. Qf3 $2 f5 38. Ra7 Qg1+ (38... Rxa7 $2 39. Bxa7 Qg1+ 40. Kh3 $19) 39. Kh3 Rxa7 40. Bxa7 Rd7 $19 (40... Qf1+ $2 41. Kh2 $19)) (37. Rh4) 37... Ng4+ $2 {[%emt 0:03:21]} (37... e4 $19 {( -> ...Qh1#)} 38. Qxe4 Ng4+ 39. Qxg4+ hxg4 40. Rxg4+ Kh6 41. Be3+ Kh5 42. Rh4+ Kg6 43. Rg4+ Kf5 44. Rf4+ Ke5 45. Re8+ Kd6 46. Rd4+ Rxd4 47. Bxd4 Rc7 (47... Qxb5 $2 48. Re1 $19)) 38. Rxg4+ $11 {[%emt 0:00:03]} hxg4 {[%emt 0:00:02]} 39. Qg2 {[%emt 0:00:57][%mdl 8192] Wards off Qg1+} (39. Rg8+ $11 Kxg8 40. Qc8+ Rd8 (40... Kg7 41. Qxg4+ Kh8 42. Qc8+ Kg7 43. Qg4+ Kh8 44. Qc8+ Kg7 45. Qg4+ $11) 41. Qxd8+ Kg7 42. b6) 39... Qd3 $19 {[%emt 0:00:02][%cal Od3f5] ( -> ...Qf5!)} ({Less strong is} 39... Qxb5 40. Qe4 h5 (40... Qxc5 41. Qxg4+ Kh6 42. Qh3+ Kg7 43. Qg4+ Kh6 44. Qh4+ Kg7 45. Qg4+ $11) 41. Rc8 $17) 40. Rb8 {[%emt 0:00:34]} Qf5 {[%emt 0:00:12] Weighted Error Value: White=1.03/Black=0.66  Loses game:     	White=3     	---        Missed win:     	---       	Black=1      Mistake:       	White=2     	Black=1      Inaccurate:     	White=6     	Black=3      OK:         	White=11    	Black=12     Best:        	White=3     	Black=5      Strong:       	---       	Black=1} 0-1